[Event "European Womens-ch 2025"]
[Site "Rhodes"]
[Date "2025.04.04"]
[Round "5.19"]
[White "Daulyte-Cornette, Deimante"]
[Black "Sieber, Fiona"]
[Result "1-0"]
[Annotator "RC"]
[ECO "B89"]
[WhiteElo "2389"]
[BlackElo "2276"]
[PlyCount "91"]
[EventDate "2025.03.29"]
[EventType "swiss"]
[EventCountry "GRE"]
[SourceTitle "playchess.com"]
[Source "ChessBase"]
[SourceQuality "1"]
[TimeControl "40/5400+30:1800+30"]

1. e4 {[%emt 0:00:02]} c5 {[%emt 0:00:05]} 2. Nf3 {[%emt 0:00:13]} d6 {[%emt 0:00:05]} 3. d4 {[%emt 0:00:10]} cxd4 {[%emt 0:00:05]} 4. Nxd4 {[%emt 0:00:05]} Nf6 {[%emt 0:00:05]} 5. Nc3 {[%emt 0:00:08]} Nc6 {[%emt 0:00:04]} 6. Bc4 {[%emt 0:00:24]} e6 {[%emt 0:00:06]} 7. Be3 {[%emt 0:00:24]} Bd7 {[%emt 0:00:33]} 8. Qe2 {[%emt 0:00:57]} a6 {[%emt 0:01:10]} 9. Bb3 {[%emt 0:00:18]} Na5 {[%emt 0:05:41]} 10. O-O-O {[%emt 0:02:29]} b5 {[%emt 0:00:09]} 11. f3 {[%emt 0:04:21]} b4 {[%emt 0:06:15]} 12. Na4 {[%emt 0:03:50]} Be7 {[%emt 0:02:06]} 13. g4 {[%emt 0:04:09]} Qc7 {[%emt 0:04:37]} 14. g5 {[%emt 0:22:27]} Nh5 {[%emt 0:03:51]} 15. Kb1 {[%emt 0:01:09]} O-O {[%emt 0:02:57]} 16. f4 {[%emt 0:04:23]} g6 {[%emt 0:00:05]} 17. f5 {[%emt 0:01:06]} Nxb3 {[%emt 0:07:30]} 18. axb3 {[%emt 0:05:54]} e5 {[%emt 0:12:50]} 19. f6 {[%emt 0:03:08]} Bd8 {[%emt 0:08:28]} 20. Nf5 {[%emt 0:00:39]} Bxf5 {[%emt 0:01:32]} 21. exf5 {[%emt 0:00:10]} Qc6 {[%emt 0:00:53]} 22. Rhf1 {[%emt 0:08:01]} Rc8 {[%emt 0:02:07]} 23. fxg6 {[%emt 0:02:47]} hxg6 {[%emt 0:00:22]} 24. c4 {[%emt 0:04:06]} Re8 {[%emt 0:05:35]} 25. Rd5 {[%emt 0:01:30]} Re6 {[%emt 0:12:01]} 26. Qf2 {[%emt 0:14:35]} a5 {[%emt 0:01:07]} 27. Qh4 {[%emt 0:00:57]} e4 {[%emt 0:01:38]} 28. Ka2 {[%emt 0:03:00]} Qe8 {[%emt 0:04:20]} 29. Rfd1 {[%emt 0:00:28]} Rxc4 {[%emt 0:02:45]} 30. Rxd6 {[%emt 0:04:38]} Rxd6 {[%emt 0:03:03]} 31. Rxd6 {[%emt 0:00:04]} Bc7 {[%emt 0:00:23]} 32. Rd2 {[%emt 0:00:12]} Rc1 {[%emt 0:03:32]} 33. Rd4 {[%emt 0:00:36]} Rh1 {[%emt 0:02:58]} 34. Qxe4 {[%emt 0:00:44]} Qxe4 {[%emt 0:00:17]} 35. Rxe4 {[%emt 0:00:03]} Re1 {[%emt 0:00:37]} 36. Re8+ {[%emt 0:01:32]} Kh7 {[%emt 0:00:02]} 37. Re7 {[%emt 0:00:24]} Bxh2 {[%emt 0:05:17]} 38. Bd4 {[%emt 0:02:49]} Rf1 {[%emt 0:02:09]} 39. Rxf7+ {[%emt 0:01:21]} Kg8 {[%emt 0:00:01]} 40. Ra7 {[%emt 0:00:00]} Rf5 {[%emt 0:00:00]} 41. Nc5 {[%emt 0:05:56]} Bd6 {[%emt 0:05:39]} 42. Ne6 {[%emt 0:03:59]} Nf4 {[%emt 0:08:14]} 43. Rg7+ {[%emt 0:01:08]} Kh8 {[%emt 0:00:04]} 44. f7 {[%emt 0:01:20]} Nxe6 {[%emt 0:00:04]} 45. Rg8+ {[%emt 0:00:05]} Kh7 {[%emt 0:00:02]} 46. Rh8# {[%emt 0:00:05]} 1-0

[Event "European Womens-ch 2025"]
[Site "Rhodes"]
[Date "2025.04.04"]
[Round "5.20"]
[White "Vega Gutierrez, Sabrina"]
[Black "Lehaci, Miruna-Daria"]
[Result "1-0"]
[Annotator "RC"]
[ECO "C50"]
[WhiteElo "2380"]
[BlackElo "2212"]
[PlyCount "97"]
[EventDate "2025.03.29"]
[EventType "swiss"]
[EventCountry "GRE"]
[SourceTitle "playchess.com"]
[Source "ChessBase"]
[SourceQuality "1"]
[TimeControl "40/5400+30:1800+30"]

1. e4 {[%emt 0:00:05]} e5 {[%emt 0:00:06]} 2. Nf3 {[%emt 0:00:09]} Nc6 {[%emt 0:00:06]} 3. Bc4 {[%emt 0:04:37]} d6 {[%emt 0:00:36]} 4. c3 {[%emt 0:03:53]} f5 {[%emt 0:00:40]} 5. d3 {[%emt 0:13:30]} f4 {[%emt 0:02:37]} 6. a4 {[%emt 0:11:40]} Qe7 {[%emt 0:04:08]} 7. a5 {[%emt 0:00:45]} a6 {[%emt 0:02:51]} 8. Qb3 {[%emt 0:02:54]} Nf6 {[%emt 0:07:54]} 9. d4 {[%emt 0:06:20]} Nd8 {[%emt 0:03:47]} 10. dxe5 {[%emt 0:02:43]} dxe5 {[%emt 0:00:11]} 11. Nbd2 {[%emt 0:00:30]} Bd7 {[%emt 0:08:32]} 12. O-O {[%emt 0:00:56]} g5 {[%emt 0:11:36]} 13. Nxg5 {[%emt 0:03:15]} Qg7 {[%emt 0:01:04]} 14. Ndf3 {[%emt 0:08:25]} Ng4 {[%emt 0:09:22]} 15. h3 {[%emt 0:03:43]} Nxf2 {[%emt 0:10:27]} 16. Rxf2 {[%emt 0:01:15]} Bc5 {[%emt 0:00:20]} 17. Be6 {[%emt 0:16:20]} Bxf2+ {[%emt 0:13:08]} 18. Kxf2 {[%emt 0:00:02]} Nxe6 {[%emt 0:01:14]} 19. Nxe6 {[%emt 0:00:05]} Qg3+ {[%emt 0:00:24]} 20. Kf1 {[%emt 0:00:48]} Rg8 {[%emt 0:06:39]} 21. Nxc7+ {[%emt 0:19:05]} Kd8 {[%emt 0:01:03]} 22. Qxg8+ {[%emt 0:00:00]} Qxg8 {[%emt 0:00:05]} 23. Nxa8 {[%emt 0:00:00]} Qg3 {[%emt 0:01:39]} 24. Bd2 {[%emt 0:00:00]} Bxh3 {[%emt 0:01:23]} 25. Ne1 {[%emt 0:00:00]} Bg4 {[%emt 0:05:19]} 26. c4 {[%emt 0:00:00]} Qb3 {[%emt 0:02:57]} 27. Ra3 {[%emt 0:00:00]} Qxc4+ {[%emt 0:00:30]} 28. Rd3+ {[%emt 0:00:00]} Ke8 {[%emt 0:00:19]} 29. Bc3 {[%emt 0:00:00]} Qxe4 {[%emt 0:00:46]} 30. Rd2 {[%emt 0:01:24]} Qc4+ {[%emt 0:01:36]} 31. Kg1 {[%emt 0:00:17]} Qc5+ {[%emt 0:02:04]} 32. Kh2 {[%emt 0:00:40]} e4 {[%emt 0:00:57]} 33. Rd4 {[%emt 0:00:29]} Qe7 {[%emt 0:01:10]} 34. Nb6 {[%emt 0:02:03]} f3 {[%emt 0:00:50]} 35. Kg1 {[%emt 0:00:13]} fxg2 {[%emt 0:01:00]} 36. Nd5 {[%emt 0:00:09]} Qh4 {[%emt 0:00:37]} 37. Rxe4+ {[%emt 0:01:17]} Kf8 {[%emt 0:00:27]} 38. Rf4+ {[%emt 0:00:42]} Ke8 {[%emt 0:00:18]} 39. Nxg2 {[%emt 0:00:18]} Qg5 {[%emt 0:00:43]} 40. Nf6+ {[%emt 0:00:00]} Kd8 {[%emt 0:00:00]} 41. Rxg4 {[%emt 0:01:28]} Qc5+ {[%emt 0:04:43]} 42. Rd4+ {[%emt 0:01:17]} Kc7 {[%emt 0:00:45]} 43. Nd5+ {[%emt 0:02:04]} Kd7 {[%emt 0:01:24]} 44. Nge3 {[%emt 0:03:04]} Qf8 {[%emt 0:03:28]} 45. Nf4+ {[%emt 0:04:58]} Kc6 {[%emt 0:01:29]} 46. Rc4+ {[%emt 0:00:24]} Kb5 {[%emt 0:00:18]} 47. Nfd5 {[%emt 0:00:31]} Qg8+ {[%emt 0:00:59]} 48. Kf2 {[%emt 0:00:49]} Qf7+ {[%emt 0:00:32]} 49. Ke1 {[%emt 0:00:15]} 1-0

[Event "European Womens-ch 2025"]
[Site "Rhodes"]
[Date "2025.04.04"]
[Round "5.21"]
[White "Atalik, Ekaterina"]
[Black "Gaboyan, Susanna"]
[Result "1/2-1/2"]
[Annotator "RC"]
[ECO "D35"]
[WhiteElo "2375"]
[BlackElo "2200"]
[PlyCount "101"]
[EventDate "2025.03.29"]
[EventType "swiss"]
[EventCountry "GRE"]
[SourceTitle "playchess.com"]
[Source "ChessBase"]
[SourceQuality "1"]
[TimeControl "40/5400+30:1800+30"]

1. d4 {[%emt 1:31:00]} d5 {[%emt 0:02:08]} 2. c4 {[%emt 0:00:00]} e6 {[%emt 0:00:05]} 3. Nc3 {[%emt 0:00:00]} Nf6 {[%emt 0:00:07]} 4. cxd5 {[%emt 0:00:00]} exd5 {[%emt 0:00:06]} 5. Bg5 {[%emt 0:00:00]} Be7 {[%emt 0:00:06]} 6. e3 {[%emt 0:00:00]} O-O {[%emt 0:00:07]} 7. Bd3 {[%emt 0:00:00]} Re8 {[%emt 0:00:09]} 8. h3 {[%emt 0:00:00]} c6 {[%emt 0:06:38]} 9. Nge2 {[%emt 0:00:00]} Nbd7 {[%emt 0:01:03]} 10. O-O {[%emt 0:00:00]} Ne4 {[%emt 0:03:24]} 11. Bxe7 {[%emt 0:00:00]} Qxe7 {[%emt 0:00:15]} 12. Bxe4 {[%emt 0:00:00]} dxe4 {[%emt 0:00:11]} 13. Ng3 {[%emt 0:00:00]} Nf6 {[%emt 0:01:01]} 14. Qc2 {[%emt 0:00:00]} h5 {[%emt 0:02:10]} 15. f3 {[%emt 0:00:00]} exf3 {[%emt 0:28:06]} 16. Rxf3 {[%emt 0:00:00]} h4 {[%emt 0:00:35]} 17. Nf5 {[%emt 0:00:00]} Bxf5 {[%emt 0:00:12]} 18. Qxf5 {[%emt 0:00:00]} Rad8 {[%emt 0:01:22]} 19. Raf1 {[%emt 0:00:00]} Rd6 {[%emt 0:04:00]} 20. a3 {[%emt 0:00:00]} Re6 {[%emt 0:03:46]} 21. Nd1 {[%emt 0:00:00]} Rf8 {[%emt 0:03:37]} 22. Qg5 {[%emt 0:00:00]} Ne4 {[%emt 0:02:54]} 23. Qxe7 {[%emt 0:00:00]} Rxe7 {[%emt 0:00:03]} 24. Re1 {[%emt 0:00:00]} f5 {[%emt 0:05:18]} 25. Nc3 {[%emt 0:00:00]} Nd2 {[%emt 0:02:11]} 26. Rf2 {[%emt 0:00:00]} Nc4 {[%emt 0:00:19]} 27. Rfe2 {[%emt 0:00:00]} Rfe8 {[%emt 0:04:20]} 28. Kf2 {[%emt 0:00:00]} Nd6 {[%emt 0:01:49]} 29. Rg1 {[%emt 0:00:00]} Ne4+ {[%emt 0:02:12]} 30. Nxe4 {[%emt 0:00:00]} Rxe4 {[%emt 0:00:04]} 31. Kf3 {[%emt 0:00:00]} Kf7 {[%emt 0:03:10]} 32. Rd1 {[%emt 0:00:00]} f4 {[%emt 0:06:14]} 33. d5 {[%emt 0:00:00]} Rxe3+ {[%emt 0:15:24]} 34. Rxe3 {[%emt 0:00:00]} fxe3 {[%emt 0:01:36]} 35. Ke2 {[%emt 0:00:00]} cxd5 {[%emt 0:01:42]} 36. Rxd5 {[%emt 0:00:00]} Re7 {[%emt 0:01:08]} 37. Rd4 {[%emt 0:00:00]} g5 {[%emt 0:00:11]} 38. Rb4 {[%emt 0:00:00]} Kf6 {[%emt 0:00:17]} 39. Rb5 {[%emt 0:01:14]} b6 {[%emt 0:00:53]} 40. a4 {[%emt 0:00:00]} Re4 {[%emt 0:00:00]} 41. a5 {[%emt 0:03:47]} bxa5 {[%emt 0:01:36]} 42. Rxa5 {[%emt 0:00:05]} Rb4 {[%emt 0:03:47]} 43. Kxe3 {[%emt 0:00:20]} Rxb2 {[%emt 0:00:10]} 44. Kf3 {[%emt 0:00:08]} Rb3+ {[%emt 0:00:28]} 45. Kf2 {[%emt 0:00:13]} Rb7 {[%emt 0:02:35]} 46. Kf3 {[%emt 0:00:11]} Kg6 {[%emt 0:01:42]} 47. Ra6+ {[%emt 0:03:53]} Kh5 {[%emt 0:01:10]} 48. Kf2 {[%emt 0:00:31]} Rb2+ {[%emt 0:00:27]} 49. Kg1 {[%emt 0:01:15]} Rb1+ {[%emt 0:00:06]} 50. Kf2 {[%emt 0:00:06]} Rb2+ {[%emt 0:00:05]} 51. Kg1 {[%emt 0:43:17]} 1/2-1/2

[Event "European Womens-ch 2025"]
[Site "Rhodes"]
[Date "2025.04.04"]
[Round "5.22"]
[White "Savina, Anastasia"]
[Black "Ibrahimova, Sabina"]
[Result "1-0"]
[Annotator "RC"]
[ECO "D46"]
[WhiteElo "2331"]
[BlackElo "2199"]
[PlyCount "105"]
[EventDate "2025.03.29"]
[EventType "swiss"]
[EventCountry "GRE"]
[SourceTitle "playchess.com"]
[Source "ChessBase"]
[SourceQuality "1"]
[TimeControl "40/5400+30:1800+30"]

1. d4 {[%emt 0:05:33]} d5 {[%emt 0:00:33]} 2. c4 {[%emt 0:00:08]} e6 {[%emt 0:00:09]} 3. Nc3 {[%emt 0:00:09]} h6 {[%emt 0:00:29]} 4. Nf3 {[%emt 0:04:17]} Nf6 {[%emt 0:00:37]} 5. Qc2 {[%emt 0:04:49]} c6 {[%emt 0:13:28]} 6. e3 {[%emt 0:02:47]} Bd6 {[%emt 0:03:20]} 7. Bd3 {[%emt 0:00:19]} Nbd7 {[%emt 0:00:35]} 8. O-O {[%emt 0:00:47]} O-O {[%emt 0:00:14]} 9. b3 {[%emt 0:05:04]} e5 {[%emt 0:11:14]} 10. cxd5 {[%emt 0:04:26]} cxd5 {[%emt 0:00:47]} 11. Nb5 {[%emt 0:04:20]} Bb8 {[%emt 0:03:34]} 12. dxe5 {[%emt 0:00:40]} Nxe5 {[%emt 0:00:10]} 13. Nxe5 {[%emt 0:00:21]} Bxe5 {[%emt 0:00:05]} 14. Bb2 {[%emt 0:00:29]} Bxb2 {[%emt 0:08:00]} 15. Qxb2 {[%emt 0:01:15]} a6 {[%emt 0:00:06]} 16. Nd4 {[%emt 0:02:47]} Qd6 {[%emt 0:05:29]} 17. Rfd1 {[%emt 0:11:34]} Bd7 {[%emt 0:01:24]} 18. h3 {[%emt 0:10:51]} Qe5 {[%emt 0:02:36]} 19. Rac1 {[%emt 0:06:20]} Rac8 {[%emt 0:00:56]} 20. Qd2 {[%emt 0:15:02]} Rfe8 {[%emt 0:05:21]} 21. Qb4 {[%emt 0:03:04]} Rxc1 {[%emt 0:07:51]} 22. Rxc1 {[%emt 0:00:04]} Rc8 {[%emt 0:00:58]} 23. Rxc8+ {[%emt 0:03:27]} Bxc8 {[%emt 0:00:05]} 24. Qc5 {[%emt 0:00:59]} Qe8 {[%emt 0:00:52]} 25. Qd6 {[%emt 0:05:51]} Bd7 {[%emt 0:03:43]} 26. Qc7 {[%emt 0:06:05]} Qc8 {[%emt 0:02:36]} 27. Qxc8+ {[%emt 0:01:01]} Bxc8 {[%emt 0:00:04]} 28. Nf5 {[%emt 0:01:06]} Bd7 {[%emt 0:03:55]} 29. Kf1 {[%emt 0:00:51]} h5 {[%emt 0:02:03]} 30. f3 {[%emt 0:00:30]} g6 {[%emt 0:00:25]} 31. Nd4 {[%emt 0:00:29]} Kf8 {[%emt 0:01:51]} 32. h4 {[%emt 0:00:15]} Ke7 {[%emt 0:00:27]} 33. Ke2 {[%emt 0:00:08]} Kd6 {[%emt 0:02:06]} 34. b4 {[%emt 0:00:33]} Bc8 {[%emt 0:02:10]} 35. Kd2 {[%emt 0:00:23]} Nd7 {[%emt 0:03:28]} 36. a4 {[%emt 0:01:07]} Ne5 {[%emt 0:04:30]} 37. Kc3 {[%emt 0:00:17]} Bd7 {[%emt 0:03:18]} 38. a5 {[%emt 0:00:07]} Ba4 {[%emt 0:00:48]} 39. Be2 {[%emt 0:00:38]} Bd7 {[%emt 0:00:50]} 40. f4 {[%emt 0:00:00]} Nc6 {[%emt 0:00:00]} 41. Nxc6 {[%emt 0:04:36]} Kxc6 {[%emt 0:23:05]} 42. Kd4 {[%emt 0:07:45]} Kd6 {[%emt 0:11:35]} 43. Bf3 {[%emt 0:02:04]} Be6 {[%emt 0:01:22]} 44. f5 {[%emt 0:01:55]} Bxf5 {[%emt 0:02:24]} 45. Bxd5 {[%emt 0:00:05]} Kc7 {[%emt 0:02:40]} 46. Bxf7 {[%emt 0:01:17]} b6 {[%emt 0:00:04]} 47. e4 {[%emt 0:00:38]} Bg4 {[%emt 0:00:23]} 48. Bxg6 {[%emt 0:00:24]} bxa5 {[%emt 0:00:23]} 49. bxa5 {[%emt 0:00:04]} Kc6 {[%emt 0:00:08]} 50. Be8+ {[%emt 0:01:46]} Kd6 {[%emt 0:00:05]} 51. Bf7 {[%emt 0:00:57]} Be2 {[%emt 0:00:52]} 52. Bc4 {[%emt 0:00:34]} Bxc4 {[%emt 0:01:09]} 53. Kxc4 {[%emt 0:00:04]} 1-0

[Event "European Womens-ch 2025"]
[Site "Rhodes"]
[Date "2025.04.04"]
[Round "5.23"]
[White "Jarocka, Liwia"]
[Black "Brunello, Marina"]
[Result "1/2-1/2"]
[Annotator "RC"]
[ECO "B12"]
[WhiteElo "2231"]
[BlackElo "2330"]
[PlyCount "103"]
[EventDate "2025.03.29"]
[EventType "swiss"]
[EventCountry "GRE"]
[SourceTitle "playchess.com"]
[Source "ChessBase"]
[SourceQuality "1"]
[TimeControl "40/5400+30:1800+30"]

1. e4 {[%emt 0:02:16]} c6 {[%emt 0:00:10]} 2. d4 {[%emt 0:00:07]} d5 {[%emt 0:00:04]} 3. e5 {[%emt 0:00:06]} Bf5 {[%emt 0:00:05]} 4. h4 {[%emt 0:00:24]} h5 {[%emt 0:00:03]} 5. c4 {[%emt 0:00:07]} e6 {[%emt 0:00:14]} 6. Nc3 {[%emt 0:00:05]} dxc4 {[%emt 0:00:06]} 7. Bxc4 {[%emt 0:00:04]} Ne7 {[%emt 0:00:10]} 8. Nge2 {[%emt 0:03:58]} Ng6 {[%emt 0:08:44]} 9. g3 {[%emt 0:16:52]} Nd7 {[%emt 0:01:22]} 10. Be3 {[%emt 0:03:01]} a6 {[%emt 0:01:32]} 11. f4 {[%emt 0:07:29]} Bg4 {[%emt 0:32:42]} 12. Bd3 {[%emt 0:08:23]} Ne7 {[%emt 0:00:10]} 13. Be4 {[%emt 0:00:57]} Nf5 {[%emt 0:00:50]} 14. Bf2 {[%emt 0:00:22]} Rc8 {[%emt 0:05:06]} 15. Qd3 {[%emt 0:06:51]} Nb6 {[%emt 0:02:34]} 16. Nc1 {[%emt 0:05:23]} Nd5 {[%emt 0:03:58]} 17. Nb3 {[%emt 0:01:35]} b5 {[%emt 0:06:01]} 18. a4 {[%emt 0:10:04]} Nb4 {[%emt 0:02:30]} 19. Qd2 {[%emt 0:00:52]} Be7 {[%emt 0:00:21]} 20. axb5 {[%emt 0:02:56]} axb5 {[%emt 0:00:51]} 21. O-O {[%emt 0:03:41]} O-O {[%emt 0:03:00]} 22. Ra7 {[%emt 0:01:18]} Rc7 {[%emt 0:00:26]} 23. Rxc7 {[%emt 0:02:24]} Qxc7 {[%emt 0:00:05]} 24. Rc1 {[%emt 0:00:29]} Qd7 {[%emt 0:01:23]} 25. Bg2 {[%emt 0:01:10]} c5 {[%emt 0:07:30]} 26. d5 {[%emt 0:02:40]} c4 {[%emt 0:06:12]} 27. Nc5 {[%emt 0:06:25]} Bxc5 {[%emt 0:00:09]} 28. Bxc5 {[%emt 0:00:01]} Nd3 {[%emt 0:00:06]} 29. dxe6 {[%emt 0:01:32]} fxe6 {[%emt 0:07:01]} 30. Bxf8 {[%emt 0:00:59]} Qd4+ {[%emt 0:00:16]} 31. Kh2 {[%emt 0:00:17]} Nxc1 {[%emt 0:00:20]} 32. Qxc1 {[%emt 0:06:52]} Kxf8 {[%emt 0:00:19]} 33. Qa1 {[%emt 0:00:46]} Ne3 {[%emt 0:06:55]} 34. Qa8+ {[%emt 0:01:12]} Kf7 {[%emt 0:00:05]} 35. Nxb5 {[%emt 0:02:46]} Qd2 {[%emt 0:00:15]} 36. Nd6+ {[%emt 0:00:04]} Kg6 {[%emt 0:00:10]} 37. Nxc4 {[%emt 0:02:28]} Nxc4 {[%emt 0:04:11]} 38. Qe4+ {[%emt 0:00:04]} Bf5 {[%emt 0:00:35]} 39. Qxc4 {[%emt 0:00:01]} Qxb2 {[%emt 0:00:06]} 40. Qc6 {[%emt 0:00:00]} Qf2 {[%emt 0:00:00]} 41. Qe8+ {[%emt 0:05:43]} Kh6 {[%emt 0:00:46]} 42. Qa8 {[%emt 0:09:29]} Qd2 {[%emt 0:01:58]} 43. Qf3 {[%emt 0:01:26]} g6 {[%emt 0:00:05]} 44. Qc6 {[%emt 0:02:21]} Kg7 {[%emt 0:02:20]} 45. Qd6 {[%emt 0:00:40]} Qf2 {[%emt 0:00:06]} 46. Qe7+ {[%emt 0:00:19]} Kg8 {[%emt 0:00:41]} 47. Qb7 {[%emt 0:01:27]} Kh8 {[%emt 0:00:16]} 48. Qf3 {[%emt 0:00:34]} Qd2 {[%emt 0:00:08]} 49. Qf1 {[%emt 0:04:06]} Bd3 {[%emt 0:06:19]} 50. Qf3 {[%emt 0:06:05]} Bf5 {[%emt 0:00:12]} 51. Kg1 {[%emt 0:00:30]} Qe1+ {[%emt 0:00:13]} 52. Kh2 {[%emt 0:03:09]} 1/2-1/2

[Event "European Womens-ch 2025"]
[Site "Rhodes"]
[Date "2025.04.04"]
[Round "5.24"]
[White "Toncheva, Nadya"]
[Black "Nenova, Andzhelika"]
[Result "1-0"]
[Annotator "RC"]
[ECO "D38"]
[WhiteElo "2329"]
[BlackElo "1903"]
[PlyCount "81"]
[EventDate "2025.03.29"]
[EventType "swiss"]
[EventCountry "GRE"]
[SourceTitle "playchess.com"]
[Source "ChessBase"]
[SourceQuality "1"]
[TimeControl "40/5400+30:1800+30"]

1. d4 {[%emt 0:00:50]} d5 {[%emt 0:00:19]} 2. c4 {[%emt 0:00:10]} e6 {[%emt 0:00:06]} 3. Nc3 {[%emt 0:00:15]} Nf6 {[%emt 0:00:15]} 4. cxd5 {[%emt 0:00:07]} exd5 {[%emt 0:00:08]} 5. Bg5 {[%emt 0:00:06]} Bb4 {[%emt 0:00:15]} 6. Nf3 {[%emt 0:06:18]} c6 {[%emt 0:06:08]} 7. Qb3 {[%emt 0:02:49]} Bd6 {[%emt 0:01:21]} 8. e3 {[%emt 0:00:44]} Qb6 {[%emt 0:03:09]} 9. Qc2 {[%emt 0:05:23]} Be6 {[%emt 0:16:52]} 10. Bd3 {[%emt 0:14:51]} Nbd7 {[%emt 0:02:10]} 11. O-O {[%emt 0:00:07]} h6 {[%emt 0:03:12]} 12. Bf4 {[%emt 0:00:24]} Be7 {[%emt 0:01:30]} 13. Ne5 {[%emt 0:08:04]} g5 {[%emt 0:18:52]} 14. Bg3 {[%emt 0:01:53]} h5 {[%emt 0:01:37]} 15. Na4 {[%emt 0:13:58]} Qd8 {[%emt 0:03:38]} 16. f4 {[%emt 0:00:14]} Nxe5 {[%emt 0:08:42]} 17. dxe5 {[%emt 0:00:28]} Ng4 {[%emt 0:01:11]} 18. f5 {[%emt 0:04:41]} Nxe3 {[%emt 0:03:19]} 19. Qf2 {[%emt 0:00:09]} Nxf1 {[%emt 0:01:20]} 20. fxe6 {[%emt 0:00:14]} fxe6 {[%emt 0:00:11]} 21. Rxf1 {[%emt 0:02:09]} Rf8 {[%emt 0:00:55]} 22. Qc2 {[%emt 0:07:37]} Rxf1+ {[%emt 0:00:37]} 23. Bxf1 {[%emt 0:00:09]} h4 {[%emt 0:04:00]} 24. Bf2 {[%emt 0:00:20]} Qa5 {[%emt 0:08:26]} 25. Nc5 {[%emt 0:00:36]} Bxc5 {[%emt 0:00:46]} 26. Bxc5 {[%emt 0:00:04]} O-O-O {[%emt 0:00:51]} 27. Qf2 {[%emt 0:05:07]} d4 {[%emt 0:07:31]} 28. Bxd4 {[%emt 0:02:58]} Qd5 {[%emt 0:01:06]} 29. Bxa7 {[%emt 0:01:38]} Qxe5 {[%emt 0:00:26]} 30. Bb6 {[%emt 0:00:33]} Re8 {[%emt 0:00:57]} 31. a4 {[%emt 0:06:45]} Qg7 {[%emt 0:01:35]} 32. a5 {[%emt 0:03:13]} e5 {[%emt 0:01:16]} 33. a6 {[%emt 0:01:25]} bxa6 {[%emt 0:00:06]} 34. Bxa6+ {[%emt 0:01:08]} Kb8 {[%emt 0:00:30]} 35. Qd2 {[%emt 0:03:51]} Qe7 {[%emt 0:00:47]} 36. Qc2 {[%emt 0:03:55]} Qd7 {[%emt 0:01:17]} 37. Qb3 {[%emt 0:00:27]} Ka8 {[%emt 0:00:23]} 38. Qa4 {[%emt 0:00:35]} Kb8 {[%emt 0:00:26]} 39. Be2 {[%emt 0:00:24]} e4 {[%emt 0:01:00]} 40. Be3 {[%emt 0:00:00]} g4 {[%emt 0:00:00]} 41. Bf4+ {[%emt 0:04:45]} 1-0

[Event "European Womens-ch 2025"]
[Site "Rhodes"]
[Date "2025.04.04"]
[Round "5.25"]
[White "Unuk, Laura"]
[Black "Rida, Ruqayyah"]
[Result "1-0"]
[Annotator "RC"]
[ECO "E64"]
[WhiteElo "2301"]
[BlackElo "2065"]
[PlyCount "125"]
[EventDate "2025.03.29"]
[EventType "swiss"]
[EventCountry "GRE"]
[SourceTitle "playchess.com"]
[Source "ChessBase"]
[SourceQuality "1"]
[TimeControl "40/5400+30:1800+30"]

1. d4 {[%emt 0:01:22]} Nf6 {[%emt 0:00:13]} 2. c4 {[%emt 0:00:10]} g6 {[%emt 0:00:16]} 3. Nf3 {[%emt 0:00:06]} Bg7 {[%emt 0:00:18]} 4. g3 {[%emt 0:00:06]} d6 {[%emt 0:00:18]} 5. Bg2 {[%emt 0:00:11]} O-O {[%emt 0:00:24]} 6. Nc3 {[%emt 0:00:06]} c5 {[%emt 0:00:23]} 7. dxc5 {[%emt 0:01:00]} dxc5 {[%emt 0:00:46]} 8. Qxd8 {[%emt 0:00:30]} Rxd8 {[%emt 0:00:18]} 9. Be3 {[%emt 0:00:05]} Be6 {[%emt 0:01:18]} 10. Ng5 {[%emt 0:24:10]} Nbd7 {[%emt 0:02:32]} 11. Nxe6 {[%emt 0:05:33]} fxe6 {[%emt 0:00:49]} 12. Bh3 {[%emt 0:04:23]} Kf7 {[%emt 0:05:03]} 13. O-O-O {[%emt 0:05:15]} Ne5 {[%emt 0:05:22]} 14. b3 {[%emt 0:03:11]} b6 {[%emt 0:12:39]} 15. Bg2 {[%emt 0:19:09]} Rac8 {[%emt 0:05:27]} 16. h3 {[%emt 0:00:41]} Ne8 {[%emt 0:04:10]} 17. Ne4 {[%emt 0:04:26]} h6 {[%emt 0:02:20]} 18. g4 {[%emt 0:02:28]} Nd6 {[%emt 0:03:44]} 19. Rd2 {[%emt 0:07:20]} Nc6 {[%emt 0:08:07]} 20. Rhd1 {[%emt 0:01:06]} Nd4 {[%emt 0:00:41]} 21. Bf4 {[%emt 0:01:05]} e5 {[%emt 0:10:13]} 22. Bg3 {[%emt 0:00:11]} Ne8 {[%emt 0:15:34]} 23. Nc3 {[%emt 0:03:41]} a6 {[%emt 0:05:33]} 24. e3 {[%emt 0:02:49]} Ne6 {[%emt 0:00:43]} 25. Bb7 {[%emt 0:01:49]} Rxd2 {[%emt 0:01:17]} 26. Rxd2 {[%emt 0:00:04]} Rb8 {[%emt 0:00:54]} 27. Bxa6 {[%emt 0:01:18]} Ng5 {[%emt 0:02:34]} 28. h4 {[%emt 0:02:08]} Nf3 {[%emt 0:00:48]} 29. Rd1 {[%emt 0:00:03]} Nd6 {[%emt 0:00:53]} 30. Bb5 {[%emt 0:01:02]} Bf6 {[%emt 0:01:34]} 31. h5 {[%emt 0:05:41]} gxh5 {[%emt 0:00:32]} 32. gxh5 {[%emt 0:00:04]} Nxb5 {[%emt 0:00:23]} 33. Nxb5 {[%emt 0:00:47]} Rg8 {[%emt 0:02:24]} 34. Nc7 {[%emt 0:00:04]} Ng5 {[%emt 0:02:04]} 35. Bh4 {[%emt 0:04:09]} Ne4 {[%emt 0:00:18]} 36. Bxf6 {[%emt 0:00:03]} Nxf6 {[%emt 0:00:18]} 37. a4 {[%emt 0:00:32]} Rc8 {[%emt 0:02:27]} 38. Nd5 {[%emt 0:01:36]} Nxd5 {[%emt 0:00:39]} 39. Rxd5 {[%emt 0:00:03]} Ke6 {[%emt 0:00:01]} 40. Kd2 {[%emt 0:00:00]} e4 {[%emt 0:00:00]} 41. Ke2 {[%emt 0:03:11]} Ra8 {[%emt 0:15:40]} 42. Kf1 {[%emt 0:07:56]} Rc8 {[%emt 0:03:30]} 43. Kg2 {[%emt 0:03:09]} Rg8+ {[%emt 0:00:39]} 44. Kh2 {[%emt 0:00:36]} Rf8 {[%emt 0:04:16]} 45. Kg3 {[%emt 0:00:05]} Rf3+ {[%emt 0:04:36]} 46. Kg2 {[%emt 0:00:24]} Rf5 {[%emt 0:02:59]} 47. Rxf5 {[%emt 0:10:45]} Kxf5 {[%emt 0:00:11]} 48. Kf1 {[%emt 0:00:02]} Ke5 {[%emt 0:01:52]} 49. Ke2 {[%emt 0:00:07]} Kd6 {[%emt 0:00:25]} 50. Kd2 {[%emt 0:00:04]} Kc6 {[%emt 0:01:15]} 51. Kc3 {[%emt 0:00:08]} Kd6 {[%emt 0:01:18]} 52. b4 {[%emt 0:00:32]} cxb4+ {[%emt 0:01:17]} 53. Kxb4 {[%emt 0:00:04]} Kc6 {[%emt 0:00:08]} 54. c5 {[%emt 0:02:54]} bxc5+ {[%emt 0:00:21]} 55. Kc4 {[%emt 0:00:04]} Kb6 {[%emt 0:00:13]} 56. a5+ {[%emt 0:00:13]} Kc6 {[%emt 0:00:16]} 57. a6 {[%emt 0:00:10]} Kb6 {[%emt 0:00:04]} 58. a7 {[%emt 0:00:04]} Kxa7 {[%emt 0:00:16]} 59. Kxc5 {[%emt 0:00:03]} Kb7 {[%emt 0:00:11]} 60. Kd5 {[%emt 0:00:06]} Kc7 {[%emt 0:00:11]} 61. Kxe4 {[%emt 0:00:37]} Kd6 {[%emt 0:00:27]} 62. Kf5 {[%emt 0:00:23]} e5 {[%emt 0:00:23]} 63. e4 {[%emt 0:00:13]} 1-0